fUST/lending_fUST_20240315
["ID","MTS","AMOUNT","RATE_DAILY","PERIOD"]
[318854653,1710433836372,-510.77784184,0.00021025,2]
[318854654,1710433836383,-500.0,0.00021025,2]
[318854655,1710433836394,-576.97474623,0.00021025,2]
[318854656,1710433836405,-500.0,0.00021025,2]
[318854657,1710433836414,-523.61598372,0.00021025,2]
[318854658,1710433836424,-500.0,0.00021025,2]
[318854659,1710433836435,-500.0,0.00021025,2]
[318854660,1710433836446,-500.0,0.00021025,2]
[318854661,1710433836461,-500.0,0.00021025,2]
[318854662,1710433836472,-500.0,0.00021025,2]
[318854663,1710433836482,-201.06147154,0.00021025,2]
[318854664,1710433836493,-301.05420635,0.00021025,2]
[318854665,1710433836504,-500.0,0.00021025,2]
[318854666,1710433836514,-500.0,0.00021025,2]
[318854667,1710433836525,-164.82585493,0.00021128,2]
[318854668,1710433836535,-500.0,0.00021138,2]
[318854669,1710433836546,-500.0,0.00021138,2]
[318854670,1710433836556,-500.0,0.00021138,2]
[318854671,1710433836566,-500.0,0.00021138,2]
[318854672,1710433836576,-500.0,0.00021138,2]
[318854673,1710433836587,-500.0,0.00021138,2]
[318854674,1710433836597,-500.0,0.00021138,2]
[318854675,1710433836607,-500.0,0.00021138,2]
[318854676,1710433836618,-500.0,0.00021138,2]
[318854677,1710433836628,-500.0,0.00021138,2]
[318854678,1710433836639,-851.29,0.00021138,2]
[318854679,1710433836649,-851.29,0.00021138,2]
[318854680,1710433836659,-851.29,0.00021138,2]
[318854681,1710433836669,-851.29,0.00021138,2]
[318854682,1710433836679,-851.29,0.00021138,2]
[318854683,1710433836690,-505.82,0.00021138,2]
[318854684,1710433836699,-505.82,0.00021138,2]
[318854685,1710433836713,-505.82,0.00021138,2]
[318854686,1710433836722,-505.82,0.00021138,2]
[318854687,1710433836743,-505.82,0.00021138,2]
[318854688,1710433836755,-500.0,0.00021138,2]
[318854689,1710433836765,-500.0,0.00021138,2]
[318854690,1710433836775,-690.23,0.00021138,2]
[318854691,1710433836786,-690.23,0.00021138,2]
[318854692,1710433836797,-500.0,0.00021139,2]
[318854693,1710433836807,-500.0,0.00021139,2]
[318854694,1710433836817,-500.0,0.00021139,2]
[318854695,1710433836827,-500.0,0.00021139,2]
[318854696,1710433836837,-500.0,0.00021139,2]
[318854697,1710433836847,-500.0,0.00021139,2]
[318854698,1710433836857,-500.0,0.00021139,2]
[318854699,1710433836868,-500.0,0.00021139,2]
[318854700,1710433836878,-500.0,0.00021139,2]
[318854701,1710433836888,-594.44323422,0.00021139,2]
[318854702,1710433837006,-500.0,0.00021139,2]
[318854703,1710433837017,-500.0,0.00021139,2]
[318854704,1710433837027,-500.0,0.00021139,2]
[318854705,1710433837037,-490.39603688,0.00021139,2]
[318854706,1710433837047,-500.0,0.00021139,2]
[318854707,1710433837058,-500.0,0.00021139,2]
[318854708,1710433837068,-500.0,0.00021139,2]
[318854709,1710433837079,-500.0,0.00021139,2]
[318854710,1710433837088,-500.0,0.00021139,2]
[318854711,1710433837098,-500.0,0.00021139,2]
[318854712,1710433837108,-500.0,0.00021139,2]
[318854713,1710433837117,-500.0,0.00021139,2]
[318854714,1710433837126,-500.0,0.00021139,2]
[318854715,1710433837135,-622.63259347,0.00021139,2]
[318854716,1710433837145,-500.0,0.00021139,2]
[318854717,1710433837154,-506.02798306,0.00021139,2]
[318854718,1710433837164,-163.0,0.00021139,2]
[318854719,1710433837173,-208.09174994,0.00021139,2]
[318854720,1710433837182,-500.0,0.00021139,2]
[318854721,1710433837191,-500.0,0.00021139,2]
[318854722,1710433837200,-500.0,0.00021139,2]
[318854723,1710433837214,-500.0,0.00021139,2]
[318854724,1710433837223,-500.0,0.00021139,2]
[318854725,1710433837233,-500.0,0.00021139,2]
[318854726,1710433837242,-500.0,0.00021139,2]
[318854727,1710433837251,-402.46628886,0.00021139,2]
[318854728,1710433837260,-500.0,0.00021139,2]
[318854729,1710433837270,-500.0,0.00021139,2]
[318854730,1710433837279,-500.0,0.00021139,2]
[318854731,1710433837289,-536.75216227,0.00021139,2]
[318854732,1710433837299,-500.0,0.00021139,2]
[318854733,1710433837311,-500.0,0.00021139,2]
[318854734,1710433837320,-500.0,0.00021139,2]
[318854735,1710433837330,-500.0,0.00021139,2]
[318854736,1710433837339,-500.0,0.00021139,2]
[318854737,1710433837353,-500.0,0.00021139,2]
[318854738,1710433837367,-500.0,0.00021139,2]
[318854739,1710433837376,-500.0,0.00021139,2]
[318854740,1710433837385,-500.0,0.00021139,2]
[318854741,1710433837395,-500.0,0.00021139,2]
[318854742,1710433837404,-500.0,0.00021139,2]
[318854743,1710433837414,-500.0,0.00021139,2]
[318854744,1710433837424,-500.0,0.00021139,2]
[318854745,1710433837433,-500.0,0.00021139,2]
[318854746,1710433837443,-500.0,0.00021139,2]
[318854747,1710433837455,-500.0,0.00021139,2]
[318854749,1710433837465,-500.0,0.00021139,2]
[318854751,1710433837475,-500.0,0.00021139,2]
[318854753,1710433837484,-500.0,0.00021139,2]
[318854755,1710433837494,-501.25719048,0.00021139,2]
[318854756,1710433837504,-500.0,0.00021139,2]
[318854758,1710433837518,-500.0,0.00021139,2]
[318854760,1710433837527,-500.0,0.00021139,2]
[318854762,1710433837536,-553.99183075,0.00021139,2]
[318854763,1710433837546,-501.5921689,0.00021139,2]
[318854765,1710433837555,-500.0,0.00021139,2]
[318854767,1710433837564,-500.0,0.00021139,2]
[318854769,1710433837574,-500.0,0.00021139,2]
[318854771,1710433837583,-500.0,0.00021139,2]
[318854773,1710433837592,-500.0,0.00021139,2]
[318854775,1710433837601,-500.0,0.00021139,2]
[318854777,1710433837610,-599.16498684,0.00021139,2]
[318854779,1710433837620,-500.0,0.00021139,2]
[318854780,1710433837629,-500.0,0.00021139,2]
[318854781,1710433837638,-422.57739481,0.00021139,2]
[318854782,1710433837647,-175.63322282,0.00021139,2]
[318854783,1710433837656,-500.0,0.00021139,2]
[318854784,1710433837666,-500.0,0.00021139,2]
[318854785,1710433837675,-503.53415324,0.00021139,2]
[318854786,1710433837684,-500.0,0.00021139,2]
[318854787,1710433837694,-500.0,0.00021139,2]
[318854788,1710433837706,-501.03265193,0.00021139,2]
[318854789,1710433837715,-500.0,0.00021139,2]
[318854790,1710433837725,-189.03459701,0.00021139,2]
[318854791,1710433837734,-500.0,0.00021139,2]
[318854792,1710433837743,-500.0,0.00021139,2]
[318854793,1710433837753,-500.0,0.00021139,2]
[318854794,1710433837762,-500.0,0.00021139,2]
[318854795,1710433837771,-500.0,0.00021139,2]
[318854796,1710433837781,-500.0,0.00021139,2]
[318854797,1710433837790,-500.0,0.00021139,2]
[318854798,1710433837800,-500.0,0.00021139,2]
[318854799,1710433837809,-442.27459746,0.00021139,2]
[318854800,1710433837819,-500.0,0.00021139,2]
[318854801,1710433837829,-500.0,0.00021139,2]
[318854802,1710433837838,-500.0,0.00021139,2]
[318854803,1710433837848,-500.0,0.00021139,2]
[318854804,1710433837857,-500.0,0.00021139,2]
[318854805,1710433837867,-500.0,0.00021139,2]
[318854806,1710433837876,-500.0,0.00021139,2]
[318854807,1710433837886,-500.0,0.00021139,2]
[318854808,1710433837896,-290.0,0.00021139,2]
[318854809,1710433837905,-500.72849245,0.00021139,2]
[318854810,1710433837915,-500.41084626,0.00021139,2]
[318854811,1710433837924,-491.62974558,0.00021139,2]
[318854812,1710433837933,-500.0,0.00021139,2]
[318854813,1710433837943,-500.0,0.00021139,2]
[318854814,1710433837952,-500.0,0.00021139,2]
[318854815,1710433837963,-500.0,0.00021139,2]
[318854816,1710433837973,-500.0,0.00021139,2]
[318854817,1710433837983,-500.0,0.00021139,2]
[318854818,1710433837992,-500.0,0.00021139,2]
[318854819,1710433838002,-500.0,0.00021139,2]
[318854820,1710433838011,-500.0,0.00021139,2]
[318854821,1710433838021,-500.0,0.00021139,2]
[318854822,1710433838031,-500.0,0.00021139,2]
[318854823,1710433838041,-500.0,0.00021139,2]
[318854824,1710433838050,-500.0,0.00021139,2]
[318854825,1710433838060,-500.0,0.00021139,2]
[318854826,1710433838070,-500.0,0.00021139,2]
[318854827,1710433838079,-500.0,0.00021139,2]
[318854828,1710433838088,-502.06411906,0.00021139,2]
[318854830,1710433838099,-500.0,0.00021139,2]
[318854831,1710433838108,-500.0,0.00021139,2]
[318854833,1710433838118,-500.0,0.00021139,2]
[318854834,1710433838127,-500.0,0.00021139,2]
[318854836,1710433838136,-553.16932216,0.00021139,2]
[318854838,1710433838145,-379.0487605,0.00021139,2]
[318854840,1710433838155,-500.0,0.00021139,2]
[318854841,1710433838164,-500.0,0.00021139,2]
[318854842,1710433838173,-500.0,0.00021139,2]
[318854843,1710433838182,-500.0,0.00021139,2]
[318854844,1710433838191,-500.0,0.00021139,2]
[318854845,1710433838200,-500.0,0.00021139,2]
[318854846,1710433838213,-500.0,0.00021139,2]
[318854847,1710433838222,-532.78395666,0.00021139,2]
[318854848,1710433838232,-2219.23,0.00021139,2]
[318854849,1710433838241,-497.41908595,0.00021139,2]
[318854850,1710433838251,-2219.23,0.00021139,2]
[318854851,1710433838260,-2219.23,0.00021139,2]
[318854852,1710433838269,-2219.23,0.00021139,2]
[318854853,1710433838279,-2219.23,0.00021139,2]
[318854854,1710433838288,-2219.23,0.00021139,2]
[318854855,1710433838298,-2219.23,0.00021139,2]
[318854856,1710433838311,-2219.23,0.00021139,2]
[318854857,1710433838321,-2219.23,0.00021139,2]
[318854858,1710433838331,-2219.23,0.00021139,2]
[318854859,1710433838340,-2219.23,0.00021139,2]
[318854860,1710433838350,-2219.23,0.00021139,2]
[318854861,1710433838360,-2219.23,0.00021139,2]
[318854862,1710433838370,-2219.23,0.00021139,2]
[318854863,1710433838380,-2219.23,0.00021139,2]
[318854864,1710433838389,-2219.23,0.00021139,2]
[318854865,1710433838399,-2219.23,0.00021139,2]
[318854866,1710433838408,-2219.23,0.00021139,2]
[318854867,1710433838417,-2219.23,0.00021139,2]
[318854868,1710433838427,-2219.39,0.00021139,2]
[318854869,1710433838437,-1489.77,0.00021139,2]
[318854870,1710433838447,-1489.77,0.00021139,2]
[318854871,1710433838460,-1489.77,0.00021139,2]
[318854872,1710433838469,-1489.77,0.00021139,2]
[318854873,1710433838478,-1489.77,0.00021139,2]
[318854874,1710433838488,-1489.77,0.00021139,2]
[318854875,1710433838498,-1489.77,0.00021139,2]
[318854876,1710433838507,-1489.77,0.00021139,2]
[318854877,1710433838517,-1489.77,0.00021139,2]
[318854878,1710433838526,-1489.77,0.00021139,2]
[318854879,1710433838535,-1489.77,0.00021139,2]
[318854880,1710433838544,-1489.77,0.00021139,2]
[318854881,1710433838553,-1489.77,0.00021139,2]
[318854883,1710433838562,-1489.77,0.00021139,2]
[318854884,1710433838571,-1489.77,0.00021139,2]
[318854886,1710433838580,-1489.77,0.00021139,2]
[318854888,1710433838589,-1489.77,0.00021139,2]
[318854890,1710433838598,-1489.77,0.00021139,2]
[318854892,1710433838607,-1489.77,0.00021139,2]
[318854893,1710433838617,-1489.9488326,0.00021139,2]
[318854894,1710433838626,-286.75038492,0.00021139,2]
[318854895,1710433838636,-500.0,0.00021139,2]
[318854897,1710433838645,-504.12322064,0.00021139,2]
[318854899,1710433838654,-500.0,0.00021139,2]
[318854901,1710433838663,-162.99598926,0.00021139,2]
[318854903,1710433838672,-500.0,0.00021139,2]
[318854905,1710433838682,-500.0,0.00021139,2]
[318854906,1710433838691,-500.0,0.00021139,2]
[318854908,1710433838700,-500.0,0.00021139,2]
[318854910,1710433838713,-338.13994286,0.00021139,2]
[318854913,1710433838734,-161.86005714,0.00021139,2]
[318854914,1710433838743,-500.0,0.00021139,2]
[318854916,1710433838753,-500.0,0.00021139,2]
[318854918,1710433838762,-500.0,0.00021139,2]
[318854919,1710433838771,-500.0,0.00021139,2]
[318854921,1710433838781,-500.0,0.00021139,2]
[318854922,1710433838791,-500.0,0.00021139,2]
[318854923,1710433838800,-500.0,0.00021139,2]
[318854924,1710433838809,-500.0,0.00021139,2]
[318854926,1710433838819,-500.0,0.00021139,2]
[318854927,1710433838828,-500.0,0.00021139,2]
[318854928,1710433838837,-851.29,0.00021139,2]
[318854930,1710433838846,-851.29,0.00021139,2]
[318854932,1710433838855,-500.0,0.00021139,2]
[318854933,1710433838868,-851.29,0.00021139,2]
[318854934,1710433838878,-851.29,0.00021139,2]
[318854935,1710433838887,-500.0,0.00021139,2]
[318854936,1710433838897,-851.29,0.00021139,2]
[318854937,1710433838907,-500.0,0.00021139,2]
[318854938,1710433838916,-851.29,0.00021139,2]
[318854939,1710433838925,-500.0,0.00021139,2]
[318854940,1710433838935,-350.9044804,0.00021139,2]
[318854941,1710433838944,-851.29,0.00021139,2]
[318854942,1710433838953,-851.29,0.00021139,2]
[318854943,1710433838964,-851.29,0.00021139,2]
[318854944,1710433838973,-851.29,0.00021139,2]
[318854945,1710433838982,-851.29,0.00021139,2]
[318854946,1710433838991,-851.29,0.00021139,2]
[318854947,1710433839000,-851.29,0.00021139,2]
[318854948,1710433839010,-851.29,0.00021139,2]
[318854949,1710433839019,-851.39,0.00021139,2]
[318854950,1710433839029,-630.98968263,0.00021139,2]
[318854951,1710433839038,-195.29035261,0.00021139,2]
[318854952,1710433839047,-500.0,0.00021139,2]
[318854953,1710433839056,-500.0,0.00021139,2]
[318854954,1710433839066,-500.0,0.00021139,2]
[318854955,1710433839075,-500.0,0.00021139,2]
[318854956,1710433839153,-500.0,0.00021139,2]
[318854957,1710433839163,-500.0,0.00021139,2]
[318854958,1710433839172,-500.0,0.00021139,2]
[318854959,1710433839182,-500.0,0.00021139,2]
[318854960,1710433839192,-500.0,0.00021139,2]
[318854961,1710433839201,-500.0,0.00021139,2]
[318854962,1710433839214,-500.0,0.00021139,2]
[318854963,1710433839227,-500.0,0.00021139,2]
[318854964,1710433839236,-500.0,0.00021139,2]
[318854965,1710433839245,-209.94,0.00021139,2]
[318854966,1710433839256,-500.0,0.00021139,2]
[318854967,1710433839267,-327.52,0.00021139,2]
[318854968,1710433839276,-500.0,0.00021139,2]
[318854969,1710433839286,-500.0,0.00021139,2]
[318854970,1710433839295,-500.0,0.00021139,2]
[318854971,1710433839306,-500.0,0.00021139,2]
[318854972,1710433839316,-616.62727636,0.00021139,2]
[318854973,1710433839325,-500.0,0.00021139,2]
[318854974,1710433839335,-500.0,0.00021139,2]
[318854975,1710433839346,-500.0,0.00021139,2]
[318854976,1710433839360,-500.0,0.00021139,2]
[318854977,1710433839370,-500.0,0.00021139,2]
[318854978,1710433839380,-500.0,0.00021139,2]
[318854979,1710433839390,-500.0,0.00021139,2]
[318854981,1710433839400,-500.0,0.00021139,2]
[318854982,1710433839410,-500.0,0.00021139,2]
[318854983,1710433839419,-500.0,0.00021139,2]
[318854984,1710433839429,-500.0,0.00021139,2]
[318854985,1710433839438,-500.0,0.00021139,2]
[318854986,1710433839447,-500.0,0.00021139,2]
[318854987,1710433839460,-500.0,0.00021139,2]
[318854988,1710433839470,-500.0,0.00021139,2]
[318854989,1710433839480,-500.0,0.00021139,2]
[318854990,1710433839489,-500.0,0.00021139,2]
[318854991,1710433839499,-500.0,0.00021139,2]
[318854992,1710433839508,-500.0,0.00021139,2]
[318854994,1710433839518,-500.0,0.00021139,2]
[318854996,1710433839527,-500.0,0.00021139,2]
[318854997,1710433839536,-500.0,0.00021139,2]
[318854999,1710433839546,-505.68718536,0.00021139,2]
[318855001,1710433839555,-456.3098425,0.00021139,2]
[318855002,1710433839564,-500.0,0.00021139,2]
[318855004,1710433839573,-588.55642792,0.00021139,2]
[318855006,1710433839583,-500.0,0.00021139,2]
[318855008,1710433839593,-500.0,0.00021139,2]
[318855011,1710433839602,-500.0,0.00021139,2]
[318855012,1710433839611,-500.0,0.00021139,2]
[318855013,1710433839620,-624.80695949,0.00021139,2]
[318855014,1710433839629,-505.82,0.00021139,2]
[318855015,1710433839638,-505.82,0.00021139,2]
[318855016,1710433839648,-505.82,0.00021139,2]
[318855017,1710433839657,-505.82,0.00021139,2]
[318855018,1710433839666,-505.82,0.00021139,2]
[318855019,1710433839677,-505.82,0.00021139,2]
[318855020,1710433839687,-505.82,0.00021139,2]
[318855021,1710433839697,-505.82,0.00021139,2]
[318855022,1710433839710,-505.82,0.00021139,2]
[318855023,1710433839719,-505.82,0.00021139,2]
[318855025,1710433839730,-505.82,0.00021139,2]
[318855026,1710433839739,-505.82,0.00021139,2]
[318855027,1710433839748,-500.40428964,0.00021139,2]
[318855028,1710433839758,-505.82,0.00021139,2]
[318855029,1710433839767,-505.87234611,0.00021139,2]
[318855030,1710433839777,-391.57375889,0.00021139,2]
[318855031,1710433839786,-500.0,0.00021139,2]
[318855032,1710433839795,-500.0,0.00021139,2]
[318855034,1710433839805,-500.0,0.00021139,2]
[318855036,1710433839814,-500.0,0.00021139,2]
[318855037,1710433839823,-500.0,0.00021139,2]
[318855038,1710433839832,-500.0,0.00021139,2]
[318855039,1710433839841,-500.0,0.00021139,2]
[318855041,1710433839850,-244.88,0.00021139,2]
[318855042,1710433839859,-690.23,0.00021139,2]
[318855043,1710433839868,-690.23,0.00021139,2]
[318855044,1710433839878,-690.23,0.00021139,2]
[318855046,1710433839887,-690.23,0.00021139,2]
[318855048,1710433839896,-690.23,0.00021139,2]
[318855050,1710433839905,-690.23,0.00021139,2]
[318855052,1710433839914,-690.23,0.00021139,2]
[318855053,1710433839923,-690.23,0.00021139,2]
[318855055,1710433839933,-690.23,0.00021139,2]
[318855057,1710433839942,-690.23,0.00021139,2]
[318855059,1710433839951,-690.23,0.00021139,2]
[318855061,1710433839966,-690.23,0.00021139,2]
[318855063,1710433839975,-690.23,0.00021139,2]
[318855065,1710433839984,-690.23,0.00021139,2]
[318855067,1710433839993,-690.23,0.00021139,2]
[318855069,1710433840001,-690.23,0.00021139,2]
[318855071,1710433840011,-690.4,0.00021139,2]
[318855073,1710433840021,-14952.97598984,0.0002114,2]
[318855080,1710433840089,155.16602765,0.0001961,2]
[318855082,1710433840156,336.88608686,0.0001961,2]
[318855083,1710433840267,155.16602765,0.00019414,2]
[318855084,1710433840280,-500.0,0.00021139,2]
[318855085,1710433840290,-296.85540788,0.00021139,2]
[318855086,1710433840303,-203.14459212,0.00021139,2]
[318855087,1710433840312,-7647.1221096,0.0002114,2]
[318855088,1710433840324,-171215.29864062,0.0002114,2]
[318855089,1710433840336,-60800.92153042,0.0002114,2]
[318855090,1710433840351,-7037.238242,0.0002114,2]
[318855091,1710433840363,-2125.2,0.0002114,2]
[318855092,1710433840375,-19969.76011943,0.0002114,2]
[318855093,1710433841067,-14731.01777212,0.0002114,2]
[318855094,1710433841080,-251.64547801,0.0002114,2]
[318855095,1710433841118,-665.0,0.0002114,2]
[318855096,1710433841134,-2836.84951542,0.0002114,2]
[318855143,1710433843220,-4116.24508168,0.0002114,2]
[318855144,1710433843233,-404860.93640033,0.0002114,2]
[318855145,1710433843246,-7983.29578626,0.0002114,2]
[318855147,1710433843307,-150602.40795525,0.0002114,2]
[318855149,1710433843321,-3430.7329,0.00021142,2]
[318855151,1710433843332,-338.7091611,0.00021142,2]
[318855153,1710433843344,-3223.52670201,0.00021142,2]
[318855155,1710433843356,-331.46232898,0.00021143,2]
[318855160,1710433843369,-155.48276011,0.00021189,2]
[318855163,1710433843382,-155.53158992,0.00021189,2]
[318855166,1710433843394,-155.31466322,0.00021189,2]
[318855168,1710433843405,-598.26031727,0.00021189,2]
[318855170,1710433843417,-155.5463427,0.00021189,2]
[318855173,1710433843428,-155.69380675,0.00021189,2]
[318855174,1710433843438,-155.36942989,0.00021189,2]
[318855175,1710433843449,-400.0,0.00021189,2]
[318855176,1710433843462,-310.25285782,0.00021189,2]
[318855177,1710433843478,-240.89644182,0.00021189,2]
[318855178,1710433843489,-3387.71200956,0.00021189,2]
[318855179,1710433843502,-310.25285782,0.00021189,2]
[318855180,1710433843515,-169.24054627,0.00021189,2]
[318855181,1710433843526,-237.65487316,0.00021189,2]
[318855182,1710433843537,-307.28710006,0.00021189,2]
[318855183,1710433843551,-1645.23149251,0.00021189,2]
[318855184,1710433843562,-204.82799833,0.00021189,2]
[318855185,1710433843572,-201.80793959,0.00021189,2]
[318855186,1710433843583,-179.69289793,0.00021189,2]
[318855187,1710433843594,-187.37817515,0.00021189,2]
[318855188,1710433843606,-155.53526883,0.0002119,2]
[318855189,1710433843616,-8000.0,0.0002119,2]
[318855190,1710433843627,-500.39865756,0.000212,2]
[318855191,1710433843638,-153.0,0.000212,2]
[318855192,1710433843650,-153.0,0.000212,2]
[318855193,1710433843661,-154.897105,0.000212,2]
[318855194,1710433843672,-153.0,0.000212,2]
[318855195,1710433843683,-153.0,0.000212,2]
[318855196,1710433843696,-153.0,0.000212,2]
[318855197,1710433843707,-153.0,0.000212,2]
[318855198,1710433843723,-153.0,0.000212,2]
[318855199,1710433843735,-153.0,0.000212,2]
[318855200,1710433843746,-153.0,0.000212,2]
[318855201,1710433843757,-153.0,0.000212,2]
[318855202,1710433843768,-153.0,0.000212,2]
[318855203,1710433843780,-153.0,0.000212,2]
[318855204,1710433843864,-153.0,0.000212,2]
[318855205,1710433843875,-153.0,0.000212,2]
[318855206,1710433843885,-153.0,0.000212,2]
[318855207,1710433843896,-153.0,0.000212,2]
[318855208,1710433843910,-153.0,0.000212,2]
[318855209,1710433843921,-306.0,0.000212,2]
[318855210,1710433843932,-201.1026188,0.000212,2]
[318855211,1710433843942,-201.1026188,0.000212,2]
[318855212,1710433843953,-201.1026188,0.000212,2]
[318855213,1710433843966,-201.1026188,0.000212,2]
[318855214,1710433843977,-201.1026188,0.000212,2]
[318855215,1710433843988,-402.2052376,0.000212,2]
[318855216,1710433843998,-291.29857822,0.00021227,2]
[318855217,1710433844011,-3337.91650113,0.00021227,2]
[318855218,1710433844021,-2646.49705415,0.00021228,60]
[318855219,1710433844070,5162.94299795,0.00019414,2]
[318855226,1710433846584,313.31252614,0.0001922,2]
[318855258,1710433848170,5531.98292752,0.0001961,2]
[318855304,1710433848672,-500.0,0.00021139,2]
[318855305,1710433848682,-500.0,0.00021139,2]
[318855308,1710433848691,-155.19253492,0.00021226,2]
[318855311,1710433848700,-540.97595126,0.00021226,2]
[318855314,1710433848709,-819.90042253,0.00021226,2]
[318855316,1710433848725,-704.36144243,0.00021226,2]
[318855319,1710433848734,-272.06171086,0.00021226,2]
[318855321,1710433848746,-1203.28138011,0.00021226,2]
[318855324,1710433848755,-318.67477704,0.00021226,2]
[318855327,1710433848764,-739.98684143,0.00021226,2]
[318855329,1710433848773,-616.32126211,0.00021226,2]
[318855333,1710433848783,-266.84412098,0.00021226,2]
[318855336,1710433848792,-627.81369394,0.00021226,2]
[318855339,1710433848801,-3237.07792439,0.00021228,60]
[318855469,1710433850690,4101.35091291,0.0001961,2]
[318855470,1710433859594,2582.9969156,0.00019414,2]
[318855471,1710433954271,156.48444879,0.00015919,2]
[318855489,1710434004831,24900.0,0.00019537,2]
[318855490,1710434028172,19027.6304326,0.00015919,2]
[318855491,1710434034210,1131.6749855,0.00019461,2]
[318855492,1710434038695,15955.09649815,0.00015919,2]
[318855493,1710434041405,687.19212462,0.00015919,2]
[318855494,1710434048675,312.62278013,0.00015919,2]
[318855495,1710434058154,7477.46257074,0.00015919,2]
[318855496,1710434062684,15955.09649815,0.00015919,2]
[318855497,1710434063330,687.19212462,0.00015919,2]
[318855498,1710434064633,312.51480875,0.00015919,2]
[318855500,1710434080637,454.68763694,0.00015919,2]
[318855501,1710434081334,686.43027522,0.00015919,2]
[318855502,1710434082644,4894.23352792,0.00015919,2]
[318855503,1710434087019,3040.4526345,0.00019369,2]
[318855522,1710434120508,155.38847118,0.00019369,2]
[318855523,1710434122155,19027.6304326,0.00019369,2]
[318855524,1710434134833,157.684887,0.00019178,2]
[318855525,1710434137363,687.19212462,0.00019369,2]
[318855526,1710434140224,7418.38097734,0.00019369,2]
[318855527,1710434148519,310.17019923,0.00019369,2]
[318855528,1710434153377,686.68422502,0.00019369,2]
[318855529,1710434162192,2072.05893773,0.00019369,2]
[318855530,1710434171102,1280.753387,0.00019192,2]
[318855531,1710434178145,2072.05893773,0.00019369,2]
[318855533,1710434210121,2099.24877315,0.00019369,2]
[318855538,1710434242775,210.72820181,0.0001959,2]
[318855540,1710434251158,155.16447434,0.00019589,2]
[318855541,1710434256276,2072.05893773,0.00019369,2]
[318855542,1710434262602,2072.05893773,0.00019175,2]
[318855543,1710434264191,6103.52253676,0.00019369,2]
[318855544,1710434265362,1600.0,0.00019537,2]
[318855545,1710434271488,206.23131541,0.00019588,2]
[318855546,1710434274760,166.6666684,0.00019178,2]
[318855547,1710434276153,2072.05893773,0.00019369,2]
[318855548,1710434298140,2072.4846483,0.00019537,2]
[318855550,1710434316691,2072.4846483,0.00019537,2]
[318855551,1710434316783,155.14894299,0.00019537,2]
[318855552,1710434322674,4846.85785622,0.00019537,2]
[318855553,1710434334709,155.5281691,0.00019537,2]
[318855554,1710434335835,623.69243659,0.00019537,2]
[318855555,1710434340250,2072.4846483,0.00019537,2]
[318855558,1710434355832,623.69243659,0.00019537,2]
[318855559,1710434360148,2072.4846483,0.00019537,2]
[318855560,1710434364891,11108.23864193,0.00019537,2]
[318855561,1710434373765,623.69243659,0.00019537,2]
[318855562,1710434380674,4100.28903855,0.00019537,2]
[318855563,1710434384158,2072.4846483,0.00019537,2]
[318855564,1710434385527,1220.636849,0.00019409,2]
[318855574,1710434398161,1500.83441385,0.00019537,2]
[318855578,1710434399760,623.69243659,0.00019537,2]
[318855586,1710434421167,623.69243659,0.00019537,2]
[318855587,1710434437764,623.69243659,0.00019537,2]